bitfinex/quotes_ETHUSD_20251006
["timestamp","ask_amount","ask_price","bid_price","bid_amount"]
[1759773242498,2.46,4702.0,4701.9,36.80116187]
[1759773242810,3.69,4702.0,4701.9,41.72093243]
[1759773244082,4.92,4702.0,4701.9,43.84393243]
[1759773244873,4.92,4702.0,4701.9,43.40363243]
[1759773245072,4.92,4702.0,4701.9,38.80712987]
[1759773245303,4.92,4702.0,4701.9,34.64492987]
[1759773245602,4.92,4702.0,4701.9,43.85743243]
[1759773245603,6.15,4702.0,4701.9,43.85743243]
[1759773245805,6.15,4702.0,4701.9,43.40363243]
[1759773246309,6.15,4702.0,4701.9,39.24143243]
[1759773246505,6.15,4702.0,4701.9,43.85743243]
[1759773246711,6.152,4702.0,4701.9,43.85743243]
[1759773246915,7.382,4702.0,4701.9,43.85743243]
[1759773248495,8.612,4702.0,4701.9,43.85743243]
[1759773249291,8.612,4702.0,4701.9,44.49103243]
[1759773249502,8.612,4702.0,4701.9,14.49103243]
[1759773249706,8.612,4702.0,4701.9,44.49103243]
[1759773249908,9.842,4702.0,4701.9,39.87503243]
[1759773250076,9.842,4702.0,4701.9,46.37984824]
[1759773250513,6.97456212,4702.0,4701.9,46.37984824]
[1759773250724,4.922,4702.4,4702.3,2.12661888]
[1759773250930,4.922,4702.4,4702.3,38.14220066]
[1759773251220,4.922,4702.4,4702.3,38.89977122]
[1759773251377,6.152,4702.4,4702.3,38.89977122]
[1759773252275,6.152,4702.4,4702.3,41.10877122]
[1759773252995,7.382,4702.4,4702.3,41.10877122]
[1759773253979,7.382,4702.4,4702.3,41.21517122]
[1759773254400,8.612,4702.4,4702.3,41.21517122]
[1759773254710,8.612,4702.4,4702.3,40.45660066]
[1759773255392,8.612,4702.4,4702.3,34.63301888]
[1759773255614,8.612,4702.4,4702.3,28.84624188]
[1759773255806,9.842,4702.4,4702.3,37.10498688]
[1759773256307,9.842,4702.4,4702.3,38.61732057]
[1759773256686,9.842,4702.4,4702.3,40.76235257]
[1759773256882,9.842,4702.4,4702.3,40.76273136]
[1759773257183,9.842,4702.4,4702.3,39.25001888]
[1759773257398,11.072,4702.4,4702.3,36.14612383]
[1759773257576,11.072,4702.4,4702.3,40.76312383]
[1759773257990,11.072,4702.4,4702.3,39.25001888]
[1759773258186,11.072,4702.4,4702.3,36.14598405]
[1759773258408,11.072,4702.4,4702.3,30.77727905]
[1759773258788,12.302,4702.4,4702.3,10.76298405]
[1759773259188,12.302,4702.4,4702.3,38.65157905]
[1759773259388,12.302,4702.4,4702.3,39.44441505]
[1759773259710,12.302,4702.4,4702.3,35.96893505]
[1759773259897,12.302,4702.4,4702.3,36.15627905]
[1759773260097,13.532,4702.4,4702.3,31.53927905]
[1759773260299,13.532,4702.4,4702.3,24.49818905]
[1759773260508,13.532,4702.4,4702.3,6.305304]
[1759773260708,13.532,4702.4,4702.3,8.32552288]
[1759773260883,13.532,4702.4,4702.3,19.13985188]
[1759773261081,13.532,4702.4,4702.3,14.04930688]
[1759773261390,13.532,4702.4,4702.3,18.66630688]
[1759773261576,14.762,4702.4,4702.3,18.66630688]
[1759773261978,14.762,4702.4,4702.3,17.51350588]
[1759773262179,14.762,4702.4,4702.3,21.49150588]
[1759773262594,14.762,4702.4,4702.3,16.87450588]
[1759773262792,14.762,4702.4,4702.3,21.49150588]
[1759773262987,14.762,4702.4,4702.3,18.67422988]
[1759773262988,15.992,4702.4,4702.3,18.67422988]
[1759773263193,15.992,4702.4,4702.3,20.49934188]
[1759773263802,15.992,4702.4,4702.3,15.88234188]
[1759773264003,15.992,4702.4,4702.3,21.91189788]
[1759773264381,17.222,4702.4,4702.3,21.91189788]
[1759773264984,17.222,4702.4,4702.3,41.7019855]
[1759773265208,17.222,4702.4,4702.3,42.11215606]
[1759773265419,17.222,4702.4,4702.3,37.49615606]
[1759773265626,17.222,4702.4,4702.3,42.11215606]
[1759773265916,18.452,4702.4,4702.3,42.78113194]
[1759773266932,18.452,4702.4,4702.3,37.1224]
[1759773267137,19.682,4702.4,4702.3,19.09314688]
[1759773267289,19.682,4702.4,4702.3,14.78091744]
[1759773267644,19.682,4702.4,4702.3,19.39691744]
[1759773268132,19.682,4702.4,4702.3,34.61898244]
[1759773268305,19.682,4702.4,4702.3,34.24636044]
[1759773268629,20.912,4702.4,4702.3,32.11375244]
[1759773269127,20.912,4702.4,4702.3,32.83862044]
[1759773269835,22.142,4702.4,4702.3,32.83862044]
[1759773270038,22.142,4702.4,4702.3,27.75768244]
[1759773270328,22.142,4702.4,4702.3,33.44268244]
[1759773271237,22.142,4702.4,4702.3,38.67741744]
[1759773271410,23.372,4702.4,4702.3,38.67741744]
[1759773271605,23.372,4702.4,4702.3,37.95087544]
[1759773271805,23.372,4702.4,4702.3,7.197598]
[1759773272008,23.4784,4702.4,4702.3,11.813598]
[1759773272213,23.4784,4702.4,4702.3,16.462131]
[1759773272932,24.7084,4702.4,4702.3,16.462131]
[1759773273116,24.7084,4702.4,4702.3,4.806]
[1759773273316,24.7084,4702.4,4702.3,16.37045788]
[1759773273515,24.7084,4702.4,4702.3,4.806]
[1759773273839,26.84522062,4702.4,4702.3,4.806]
[1759773274038,26.84522062,4702.4,4702.3,9.239143]
[1759773274239,28.07522062,4702.4,4702.3,9.260394]
[1759773274554,28.07522062,4702.4,4702.3,8.525095]
[1759773275133,28.07522062,4702.4,4702.3,2.4]
[1759773275344,28.07522062,4702.4,4702.3,4.811]
[1759773275506,29.30522062,4702.4,4702.3,5.122949]
[1759773275707,29.30522062,4702.4,4702.3,7.533949]
[1759773276022,29.30522062,4702.4,4702.3,5.122949]
[1759773276223,29.30522062,4702.4,4702.3,11.03143]
[1759773276428,29.30522062,4702.4,4702.3,8.755212]
[1759773277009,30.53522062,4702.4,4702.3,8.755212]
[1759773277208,30.53522062,4702.4,4702.3,12.728199]
[1759773277428,28.292,4702.4,4702.3,12.728199]
[1759773278345,29.522,4702.4,4702.3,23.096915]
[1759773278550,29.522,4702.4,4702.3,25.22353388]
[1759773279259,29.522,4702.4,4702.3,23.219384]
[1759773279628,30.752,4702.4,4702.3,23.219384]
[1759773279827,30.752,4702.4,4702.3,12.437602]
[1759773280045,32.88882062,4702.4,4702.3,8.118977]
[1759773280252,32.88882062,4702.4,4702.3,2.4]
[1759773280461,2.12670934,4702.1,4702.0,0.001]
[1759773280629,2.76030934,4702.1,4702.0,1.253]
[1759773280824,32.88882062,4702.4,4702.0,1.253]
[1759773281069,1.23,4702.1,4702.0,1.253]
[1759773281956,1.23,4702.1,4702.0,6.433999]
[1759773282256,1.23,4702.1,4702.0,5.050104]
[1759773282434,2.46,4702.1,4702.0,5.050104]
[1759773282637,2.46,4702.1,4702.0,12.557443]
[1759773282841,2.46,4702.1,4702.0,11.719745]
[1759773283236,2.46,4702.1,4702.0,13.84649957]
[1759773283460,2.46,4702.1,4702.0,14.31089957]
[1759773283659,2.46,4702.1,4702.0,6.822236]
[1759773283879,3.69,4702.1,4702.0,7.038535]
[1759773284592,3.69,4702.1,4702.0,4.818]
[1759773284932,3.69,4702.1,4702.0,15.776881]
[1759773285170,3.69,4702.1,4702.0,16.198881]
[1759773285378,4.92,4702.1,4702.0,8.652635]
[1759773285541,4.92,4702.1,4702.0,2.401]
[1759773285739,4.92,4702.1,4702.0,5.159056]
[1759773286035,4.92,4702.1,4702.0,7.050056]
[1759773286868,6.15,4702.1,4702.0,7.050056]
[1759773287349,6.2564,4702.1,4702.0,7.050056]
[1759773287850,6.2564,4702.1,4702.0,2.401]
[1759773288049,6.2564,4702.1,4702.0,12.508274]
[1759773288256,7.4864,4702.1,4702.0,9.325363]
[1759773288456,7.4864,4702.1,4702.0,11.742363]
[1759773288962,7.4864,4702.1,4702.0,13.86911757]
[1759773289140,7.4864,4702.1,4702.0,4.818]
[1759773289468,7.4864,4702.1,4702.0,17.024774]
[1759773289658,8.7164,4702.1,4702.0,15.971623]
[1759773290237,8.7164,4702.1,4702.0,15.981823]
[1759773290855,8.7164,4702.1,4702.0,9.353703]
[1759773291044,9.9464,4702.1,4702.0,9.353703]
[1759773291243,9.9464,4702.1,4702.0,15.772413]
[1759773291854,9.9464,4702.1,4702.0,13.972413]
[1759773292276,9.9464,4702.1,4702.0,18.07011757]
[1759773292437,11.1764,4702.1,4702.0,15.943363]
[1759773293170,11.1764,4702.1,4702.0,13.526363]
[1759773293387,11.07,4702.1,4702.0,37.18006213]
[1759773293758,11.07,4702.1,4702.0,39.31688275]
[1759773293960,12.3,4702.1,4702.0,39.31688275]
[1759773294360,12.3,4702.1,4702.0,39.84774575]
[1759773294557,12.3,4702.1,4702.0,16.26274913]
[1759773294762,12.3,4702.1,4702.0,7.337716]
[1759773294957,12.3,4702.1,4702.0,4.922716]
[1759773295159,12.3,4702.1,4702.0,7.337716]
[1759773295160,13.53,4702.1,4702.0,7.337716]
[1759773295339,13.53,4702.1,4702.0,9.668681]
[1759773295539,13.53,4702.1,4702.0,12.083681]
[1759773295857,13.53,4702.1,4702.0,14.67483557]
[1759773296062,13.53,4702.1,4702.0,10.105181]
[1759773296242,13.53,4702.1,4702.0,9.411913]
[1759773296442,13.53,4702.1,4702.0,9.390661]
[1759773296643,14.76,4702.1,4702.0,11.51741557]
[1759773296951,14.76,4702.1,4702.0,11.98181557]
[1759773297359,14.76,4702.1,4702.0,34.49606257]
[1759773297758,14.76,4702.1,4702.0,34.79983313]
[1759773298076,15.99,4702.1,4702.0,36.93665375]
[1759773298576,15.99,4702.1,4702.0,39.84774575]
[1759773299366,17.22,4702.1,4702.0,39.84774575]
[1759773300372,16.87481798,4702.1,4702.0,40.48550695]
[1759773300760,18.10481798,4702.1,4702.0,40.48550695]
[1759773301590,30.752,4702.4,4702.2,2.12666411]
[1759773301766,30.752,4702.4,4702.3,39.96744211]
[1759773301962,30.752,4702.4,4702.3,40.73561267]
[1759773302278,31.982,4702.4,4702.3,40.73561267]
[1759773302466,31.982,4702.4,4702.3,38.32161267]
[1759773302666,31.982,4702.4,4702.3,42.94461267]
[1759773303378,31.982,4702.4,4702.3,38.42801267]
[1759773303691,33.212,4702.4,4702.3,43.68871693]
[1759773304909,34.442,4702.4,4702.3,39.06571693]
[1759773305085,34.442,4702.4,4702.3,45.20179278]
[1759773305402,34.442,4702.4,4702.3,45.2016036]
[1759773305698,34.442,4702.4,4702.3,15.2016036]
[1759773305865,34.442,4702.4,4702.3,45.2016036]
[1759773306069,34.442,4702.4,4702.3,43.68771693]
[1759773306306,35.672,4702.4,4702.3,32.88021611]
[1759773306521,35.672,4702.4,4702.3,35.79815311]
[1759773306667,35.672,4702.4,4702.3,12.75094211]
[1759773306872,35.672,4702.4,4702.3,42.75094211]
[1759773307169,35.672,4702.4,4702.3,43.05471267]
[1759773307370,35.672,4702.4,4702.3,43.05571267]
[1759773307596,36.902,4702.4,4702.3,43.05571267]
[1759773308208,36.902,4702.4,4702.3,43.05471267]
[1759773308502,36.902,4702.4,4702.3,41.15227067]
[1759773308707,36.902,4702.4,4702.3,36.53027067]
[1759773309000,38.132,4702.4,4702.3,17.97955988]
[1759773309171,38.132,4702.4,4702.3,8.07291188]
[1759773309375,38.132,4702.4,4702.3,10.47291188]
[1759773309583,38.132,4702.4,4702.3,14.90729209]
[1759773309795,38.132,4702.4,4702.3,41.37399909]
[1759773309976,38.132,4702.4,4702.3,43.58299909]
[1759773310172,39.362,4702.4,4702.3,28.33442553]
[1759773310376,39.362,4702.4,4702.3,29.29491588]
[1759773310777,39.362,4702.4,4702.3,32.27819488]
[1759773310978,39.362,4702.4,4702.3,36.90119488]
[1759773311606,40.592,4702.4,4702.3,36.90119488]
[1759773311806,40.592,4702.4,4702.3,34.11386488]
[1759773311972,40.592,4702.4,4702.3,25.66414388]
[1759773312181,40.592,4702.4,4702.3,28.06414388]
[1759773312489,40.592,4702.4,4702.3,23.44114388]
[1759773312700,40.592,4702.4,4702.3,6.39631]
[1759773312898,42.28564584,4702.4,4702.3,2.245138]
[1759773313098,42.28564584,4702.4,4702.3,2.414]
[1759773313306,42.28564584,4702.4,4702.3,12.661314]
[1759773313627,42.28564584,4702.4,4702.3,7.398207]
[1759773313795,42.28564584,4702.4,4702.3,8.86855]
[1759773314179,41.822,4702.4,4702.3,11.26855]
[1759773314414,43.052,4702.4,4702.3,13.39516888]
[1759773314795,43.052,4702.4,4702.3,4.814]
[1759773315206,43.052,4702.4,4702.3,17.50198188]
[1759773315506,43.052,4702.4,4702.3,15.375363]
[1759773315705,44.282,4702.4,4702.3,11.863114]
[1759773315930,44.282,4702.4,4702.3,10.505837]
[1759773316092,46.41882062,4702.4,4702.3,2.4]
[1759773316420,46.41882062,4702.4,4702.3,4.813]
[1759773316916,46.41882062,4702.4,4702.3,2.413]
[1759773317213,47.64882062,4702.4,4702.3,2.413]
[1759773317418,0.6336,4702.3,4702.0,0.001]
[1759773317586,2.76030934,4702.1,4702.0,0.001]
[1759773318005,2.76030934,4702.1,4702.0,2.414]
[1759773318204,2.76030934,4702.1,4702.0,0.001]
[1759773318415,3.99030934,4702.1,4702.0,0.637]
[1759773319390,3.99030934,4702.1,4702.0,0.001]
[1759773319731,5.32970675,4702.1,4702.0,0.001]
[1759773319936,6.55970675,4702.1,4702.0,0.422]
[1759773320154,6.55970675,4702.1,4702.0,0.001]
[1759773320434,6.55970675,4702.1,4702.0,0.009]
[1759773320637,6.55970675,4702.1,4702.0,0.016]
[1759773320839,6.55970675,4702.1,4702.0,0.001]
[1759773321144,6.55970675,4702.1,4702.0,0.009]
[1759773321296,7.78970675,4702.1,4702.0,0.009]
[1759773322530,7.78970675,4702.1,4702.0,0.368]
[1759773322706,9.01970675,4702.1,4702.0,0.368]
[1759773324030,10.24970675,4702.1,4702.0,0.368]
[1759773325327,11.47970675,4702.1,4702.0,0.368]
[1759773326140,9.35299741,4702.1,4702.0,0.368]
[1759773326700,12.70970675,4702.1,4702.0,0.368]
[1759773327143,10.58299741,4702.1,4702.0,0.368]
[1759773327510,12.70970675,4702.1,4702.0,1.168]
[1759773327699,10.58299741,4702.1,4702.0,1.168]
[1759773327902,13.93970675,4702.1,4702.0,1.168]
[1759773328103,11.81299741,4702.1,4702.0,1.168]
[1759773328304,11.81299741,4702.1,4702.0,0.001]
[1759773328504,13.93970675,4702.1,4702.0,2.413]
[1759773329248,13.93970675,4702.1,4702.0,0.001]
[1759773329449,15.16970675,4702.1,4702.0,2.413]
[1759773330847,16.39970675,4702.1,4702.0,2.413]
[1759773331549,16.39970675,4702.1,4702.0,0.001]
[1759773331730,16.39970675,4702.1,4702.0,2.413]
[1759773331928,14.27299741,4702.1,4702.0,2.413]
[1759773332123,16.39970675,4702.1,4702.0,2.413]
[1759773332314,16.39970675,4702.1,4702.0,0.001]
[1759773332315,17.62970675,4702.1,4702.0,0.001]
[1759773332652,15.50299741,4702.1,4702.0,0.1]
[1759773332856,17.62970675,4702.1,4702.0,0.1]
[1759773333218,15.50299741,4702.1,4702.0,0.1]
[1759773333412,17.62970675,4702.1,4702.0,0.1]
[1759773333733,18.85970675,4702.1,4702.0,0.1]
[1759773334135,18.85970675,4702.1,4702.0,0.001]
[1759773334324,18.85970675,4702.1,4702.0,2.413]
[1759773334654,18.85970675,4702.1,4702.0,2.412]
[1759773334859,0.6336,4702.0,4701.8,0.001]
[1759773335165,0.6336,4702.0,4700.4,0.001]
[1759773335166,2.76103325,4700.5,4700.4,0.001]
[1759773335460,5.16103325,4700.5,4700.4,0.001]
[1759773336662,6.39103325,4700.5,4700.4,0.001]
[1759773337919,7.62103325,4700.5,4700.4,0.001]
[1759773338119,9.75785387,4700.5,4700.4,0.001]
[1759773339352,10.98785387,4700.5,4700.4,0.001]
[1759773340623,12.21785387,4700.5,4700.4,0.001]
[1759773342031,13.44785387,4700.5,4700.4,0.001]
[1759773343353,14.67785387,4700.5,4700.4,0.001]
[1759773343552,16.10785387,4700.5,4700.4,0.001]
[1759773343778,8.81,4700.5,4700.4,0.4566]
[1759773344144,10.93743325,4700.5,4700.4,0.4566]
[1759773344465,10.93743325,4700.5,4700.4,1.042]
[1759773344656,12.16743325,4700.5,4700.4,1.042]
[1759773345056,12.27383325,4700.5,4700.4,1.042]
[1759773345265,10.1464,4700.5,4700.4,1.4976]
[1759773345441,10.78,4700.5,4700.4,1.4976]
[1759773345642,12.90743325,4700.5,4700.4,1.4976]
[1759773346073,12.01,4700.5,4700.4,1.4976]
[1759773346273,11.3764,4700.5,4700.4,1.4976]
[1759773346450,11.3764,4700.5,4700.4,2.582556]
[1759773346655,11.3764,4700.5,4700.4,9.195988]
[1759773346850,11.3764,4700.5,4700.4,9.56325176]
[1759773347271,9.9464,4700.5,4700.4,9.56325176]
[1759773347474,11.1764,4700.5,4700.4,4.00296376]
[1759773347778,11.1764,4700.5,4700.4,2.8696]
[1759773348142,11.1764,4700.5,4700.4,0.4566]
[1759773348344,11.1764,4700.5,4700.4,2.8696]
[1759773348870,12.4064,4700.5,4700.4,2.8686]
[1759773349040,12.4064,4700.5,4700.4,6.091291]
[1759773349242,12.4064,4700.5,4700.4,5.978291]
[1759773349852,12.4064,4700.5,4700.4,2.8686]
[1759773350280,13.6364,4700.5,4700.4,2.8686]
[1759773351174,13.6364,4700.5,4700.4,0.4566]
[1759773351374,13.6364,4700.5,4700.4,2.8686]
[1759773351570,14.8664,4700.5,4700.4,2.8686]
[1759773352367,14.8164,4700.5,4700.4,2.8686]
[1759773352960,16.0464,4700.5,4700.4,2.8686]
[1759773354352,17.2764,4700.5,4700.4,2.8686]
[1759773355783,18.5064,4700.5,4700.4,10.78708]
[1759773356083,18.5064,4700.5,4700.4,11.8955967]
[1759773357051,19.7364,4700.5,4700.4,14.02307521]
[1759773358075,19.7364,4700.5,4700.4,23.10062521]
[1759773358278,19.7364,4700.5,4700.4,16.07943821]
[1759773358474,20.9664,4700.5,4700.4,16.07943821]
[1759773359087,20.9664,4700.5,4700.4,18.52512421]
[1759773359264,20.9664,4700.5,4700.4,16.70862421]
[1759773359459,20.9664,4700.5,4700.4,16.70762421]
[1759773359882,20.9664,4700.5,4700.4,13.1902447]
[1759773360197,18.33932758,4700.5,4700.4,32.55799421]
[1759773360375,18.33932758,4700.5,4700.4,38.6401364]
[1759773361297,18.33932758,4700.5,4700.4,33.7383634]
[1759773361489,19.56932758,4700.5,4700.4,34.5479664]
[1759773362194,10.88985324,4700.5,4700.4,40.8501364]
[1759773362777,0.1064,4701.8,4701.7,2.12689027]
[1759773362975,0.1064,4701.8,4701.7,12.95885827]
[1759773363166,0.1064,4701.8,4701.7,14.83005827]
[1759773363367,0.1064,4701.8,4701.7,13.41255827]
[1759773363582,0.1064,4701.8,4701.7,5.383043]
[1759773363785,0.1064,4701.8,4701.7,7.794043]
[1759773364099,0.1064,4701.8,4701.7,11.774763]
[1759773364510,1.3364,4701.8,4701.7,11.774763]
[1759773364707,1.3364,4701.8,4701.7,7.943473]
[1759773365205,1.3364,4701.8,4701.7,2.4]
[1759773365413,1.3364,4701.8,4701.7,9.567161]
[1759773365584,1.3364,4701.8,4701.7,9.04354]
[1759773366106,2.5664,4701.8,4701.7,4.811]
[1759773366296,2.5664,4701.8,4701.7,9.04354]
[1759773367303,2.5664,4701.8,4701.7,11.04354]
[1759773367497,3.7964,4701.8,4701.7,6.953999]
[1759773368291,3.7964,4701.8,4701.7,7.136584]
[1759773368882,5.0264,4701.8,4701.7,7.136584]
[1759773369083,5.0264,4701.8,4701.7,4.726584]
[1759773369411,5.0264,4701.8,4701.7,9.90786]
[1759773370111,5.0264,4701.8,4701.7,7.537508]
[1759773370318,6.2564,4701.8,4701.7,7.934584]
[1759773371291,6.2564,4701.8,4701.7,6.939986]
[1759773371692,9.62322062,4701.8,4701.7,2.4]
[1759773371892,9.62322062,4701.8,4701.7,2.409]
[1759773373029,10.85322062,4701.8,4701.7,2.409]
[1759773373328,10.85522062,4701.8,4701.7,2.409]
[1759773374526,12.08522062,4701.8,4701.7,2.409]
[1759773375384,12.08522062,4701.8,4701.7,2.8627]
[1759773375385,9.9484,4701.8,4701.7,2.8627]
[1759773375797,11.1784,4701.8,4701.7,5.302888]
[1759773376420,11.1784,4701.8,4701.7,5.336531]
[1759773376644,11.1784,4701.8,4701.7,2.409]
[1759773376793,11.1784,4701.8,4701.7,2.408]
[1759773377437,11.827,4701.8,4701.7,15.55416227]
[1759773377637,11.827,4701.8,4701.7,33.4971645]
[1759773377781,11.827,4701.8,4701.7,31.4071915]
[1759773378582,11.827,4701.8,4701.7,35.5453605]
[1759773378787,13.057,4701.8,4701.7,35.0855435]
[1759773379631,13.057,4701.8,4701.7,36.6990065]
[1759773379863,13.057,4701.8,4701.7,39.1080065]
[1759773380367,14.287,4701.8,4701.7,39.1080065]
[1759773380535,14.287,4701.8,4701.7,9.1080065]
[1759773381074,14.287,4701.8,4701.7,39.1080065]
[1759773381428,15.992,4702.1,4702.0,2.12675457]
[1759773381628,15.992,4702.1,4702.0,40.30398219]
[1759773381945,15.992,4702.1,4702.0,40.75768219]
[1759773382256,1e-08,4702.1,4702.0,41.02478608]
[1759773382443,1e-08,4702.1,4702.0,41.66256084]
[1759773383137,1.23000001,4702.1,4702.0,41.66256084]
[1759773383554,34.98590795,4702.4,4702.1,4.79381323]
[1759773383758,34.98590795,4702.4,4702.3,2.4]
[1759773383941,34.98590795,4702.4,4702.3,34.98031888]
[1759773384342,36.21590795,4702.4,4702.3,34.98031888]
[1759773384549,29.83719616,4702.4,4702.3,34.98031888]
[1759773384952,29.83719616,4702.4,4702.3,39.59831888]
[1759773385160,29.83719616,4702.4,4702.3,40.8435465]
[1759773386079,31.06719616,4702.4,4702.3,40.8435465]
[1759773386263,8.95012176,4702.4,4702.3,40.8435465]
[1759773386567,8.95012176,4702.4,4702.3,36.49265039]
[1759773387066,8.95012176,4702.4,4702.3,41.10965039]
[1759773387264,8.49484662,4702.4,4702.3,41.10965039]
[1759773387471,8.49484662,4702.4,4702.3,41.21605039]
[1759773387875,8.49484662,4702.4,4702.3,41.85375329]
[1759773388563,9.72484662,4702.4,4702.3,41.85375329]
[1759773389443,9.72484662,4702.4,4702.3,32.4600394]
[1759773389655,9.72484662,4702.4,4702.3,25.25812688]
[1759773389862,10.95484662,4702.4,4702.3,39.70371888]
[1759773391255,12.18484662,4702.4,4702.3,5.214143]
[1759773391454,12.18484662,4702.4,4702.3,11.95776188]
[1759773391668,12.18684662,4702.4,4702.3,11.95776188]
[1759773391847,12.18684662,4702.4,4702.3,34.22184788]
[1759773392246,12.18684662,4702.4,4702.3,34.56914788]
[1759773392470,12.18684662,4702.4,4702.3,36.8123685]
[1759773392781,13.41684662,4702.4,4702.3,36.8123685]
[1759773392948,13.41684662,4702.4,4702.3,41.8405395]
[1759773393551,13.41684662,4702.4,4702.3,41.3868395]
[1759773394162,14.64684662,4702.4,4702.3,41.3868395]
[1759773395461,15.87684662,4702.4,4702.3,41.3868395]
[1759773396651,15.87684662,4702.4,4702.3,36.7698395]
[1759773396852,17.10684662,4702.4,4702.3,41.8586395]
[1759773397860,17.10684662,4702.4,4702.3,41.3868395]
[1759773398263,18.33684662,4702.4,4702.3,41.3868395]
[1759773398996,18.33684662,4702.4,4702.3,41.8586395]
[1759773399769,19.56684662,4702.4,4702.3,41.8586395]
[1759773401278,20.79684662,4702.4,4702.3,41.8586395]
[1759773401478,20.79684662,4702.4,4702.3,41.3868395]
[1759773401978,20.79684662,4702.4,4702.3,26.2475625]
[1759773402178,20.79684662,4702.4,4702.3,26.52004288]
[1759773402358,21.25484662,4702.4,4702.3,4.775459]
[1759773402562,22.48484662,4702.4,4702.3,2.407]
[1759773402759,22.48484662,4702.4,4702.3,4.807]
[1759773402957,22.48484662,4702.4,4702.3,10.691509]
[1759773403163,22.48484662,4702.4,4702.3,9.561509]
[1759773403974,23.71484662,4702.4,4702.3,9.561509]
[1759773404163,23.71484662,4702.4,4702.3,11.667374]
[1759773404364,23.71484662,4702.4,4702.3,10.918374]
[1759773405262,23.71484662,4702.4,4702.3,11.077718]
[1759773405465,24.94484662,4702.4,4702.3,11.077718]
[1759773406281,24.48684662,4702.4,4702.3,11.294594]
[1759773406781,24.48684662,4702.4,4702.3,11.079718]
[1759773406782,26.17484662,4702.4,4702.3,11.079718]
[1759773406987,25.71684662,4702.4,4702.3,11.079718]
[1759773407383,25.71684662,4702.4,4702.3,11.284718]
[1759773407585,26.17484662,4702.4,4702.3,11.284718]
[1759773407967,25.71684662,4702.4,4702.3,11.284718]
[1759773408171,26.94684662,4702.4,4702.3,11.284718]
[1759773408396,26.94684662,4702.4,4702.3,4.807]
[1759773409102,26.94684662,4702.4,4702.3,10.883744]
[1759773409302,26.94684662,4702.4,4702.3,12.017446]
[1759773409597,28.63484662,4702.4,4702.3,12.017446]
[1759773409909,28.63484662,4702.4,4702.3,7.146718]
[1759773410088,30.77166724,4702.4,4702.3,2.4]
[1759773410294,30.77166724,4702.4,4702.3,4.806]
[1759773410482,30.77166724,4702.4,4702.3,2.401]
[1759773410678,30.77166724,4702.4,4702.3,4.807]
[1759773410880,32.00166724,4702.4,4702.3,4.807]
[1759773412291,33.23166724,4702.4,4702.3,4.807]
[1759773412492,33.33806724,4702.4,4702.3,4.807]
[1759773412858,35.4646409,4702.4,4702.3,0.001]
[1759773413065,35.4646409,4702.4,4702.3,2.407]
[1759773413566,36.6946409,4702.4,4702.3,2.407]
[1759773414197,37.3282409,4702.4,4702.3,0.001]
[1759773414368,37.3282409,4702.4,4702.3,2.073]
[1759773414992,38.5582409,4702.4,4702.3,0.001]
[1759773415273,38.5582409,4702.4,4702.3,2.131]
[1759773416179,38.5582409,4702.4,4702.3,0.001]
[1759773416382,39.7882409,4702.4,4702.3,0.001]
[1759773416605,39.7882409,4702.4,4702.3,0.006]
[1759773417779,41.0182409,4702.4,4702.3,0.006]
[1759773418304,41.0182409,4702.4,4702.3,0.01]
[1759773418502,41.0182409,4702.4,4702.3,0.014]
[1759773418875,41.0182409,4702.4,4702.3,0.001]
[1759773419077,41.0182409,4702.4,4702.3,0.018]
[1759773419078,42.2482409,4702.4,4702.3,0.018]
[1759773419712,42.2482409,4702.4,4702.3,0.001]
[1759773419901,42.2482409,4702.4,4702.3,0.022]
[1759773420077,42.2482409,4702.4,4702.3,0.001]
[1759773420281,42.2482409,4702.4,4702.3,0.006]
[1759773420481,43.4782409,4702.4,4702.3,0.006]
[1759773421480,45.6311339,4702.4,4702.3,0.006]
[1759773421896,46.8611339,4702.4,4702.3,0.006]
[1759773422589,46.8611339,4702.4,4702.3,0.01]
[1759773423087,46.8611339,4702.4,4702.3,0.001]
[1759773423288,48.0911339,4702.4,4702.3,0.006]
[1759773424688,49.3211339,4702.4,4702.3,0.006]
[1759773424900,49.3211339,4702.4,4702.3,0.001]
[1759773425985,2.7603998,4701.9,4701.8,0.001]
[1759773426189,8.76455379,4701.9,4701.8,0.001]
[1759773426390,9.21485379,4701.9,4701.8,0.001]
[1759773427520,10.44485379,4701.9,4701.8,0.001]
[1759773428801,2.76089748,4700.8,4700.5,0.001]
[1759773429046,3.03698723,4700.8,4700.5,0.001]
[1759773429202,0.6336,4700.8,4700.7,0.353]
[1759773429402,2.76089748,4700.8,4700.7,0.353]
[1759773430013,3.99089748,4700.8,4700.7,0.353]
[1759773430928,3.99089748,4700.8,4700.7,0.001]
[1759773431132,3.99089748,4700.8,4700.7,2.408]
[1759773431649,5.22089748,4700.8,4700.7,0.001]
[1759773432505,5.22089748,4700.8,4700.7,2.408]
[1759773433106,9.65341214,4700.8,4700.7,2.408]
[1759773433306,10.88341214,4700.8,4700.7,2.408]
[1759773433514,12.18447428,4700.8,4700.7,2.408]
[1759773434435,12.18447428,4700.8,4700.7,0.001]
[1759773434605,13.41447428,4700.8,4700.7,0.001]
[1759773435229,13.86477428,4700.8,4700.7,0.001]
[1759773435431,13.86477428,4700.8,4700.7,0.353]
[1759773436017,15.09477428,4700.8,4700.7,0.353]
[1759773436644,15.09477428,4700.8,4700.7,0.001]
[1759773437455,16.32477428,4700.8,4700.7,0.001]
[1759773438230,2.76103325,4700.5,4700.4,0.001]